bitfinex/quotes_ETHUSD_20251128
["timestamp","ask_amount","ask_price","bid_price","bid_amount"]
[1764362092009,1.1910666,3055.4,3055.3,4.28533502]
[1764362092584,1.6783666,3055.4,3055.3,3.77950501]
[1764362093421,1.6783666,3055.4,3055.3,3.81223502]
[1764362094419,1.6783666,3055.4,3055.3,4.01923502]
[1764362094913,1.6783666,3055.4,3055.3,3.98650501]
[1764362095118,2.1738666,3055.4,3055.3,3.98650501]
[1764362097119,2.1738666,3055.4,3055.3,3.58100101]
[1764362098889,2.16409574,3055.4,3055.3,3.58100101]
[1764362105647,1.18129574,3055.4,3055.3,5.17784526]
[1764362105932,1.66549574,3055.4,3055.3,4.67201525]
[1764362106121,2.11819574,3055.4,3055.3,4.67201525]
[1764362107935,1.66549574,3055.4,3055.3,4.67201525]
[1764362108437,1.66549574,3055.4,3055.3,3.98650501]
[1764362110556,1.66549574,3055.4,3055.3,0.001]
[1764362110557,2.11819574,3055.4,3055.3,0.001]
[1764362114429,1.66549574,3055.4,3055.3,0.101]
[1764362114732,2.11819574,3055.4,3055.3,0.101]
[1764362115719,2.11819574,3055.4,3055.3,3.37400101]
[1764362116662,1.66549574,3055.4,3055.3,3.37400101]
[1764362116819,1.18129574,3055.4,3055.3,3.37400101]
[1764362117135,2.15689574,3055.4,3055.3,3.37400101]
[1764362117732,2.15889574,3055.4,3055.3,3.37400101]
[1764362118417,2.10889574,3055.4,3055.3,3.37400101]
[1764362119449,1.62809574,3055.4,3055.3,3.37400101]
[1764362120376,2.10889574,3055.4,3055.3,3.37400101]
[1764362124252,1.62809574,3055.4,3055.3,3.37400101]
[1764362124630,1.62809574,3055.4,3055.3,0.101]
[1764362125265,1.13329574,3055.4,3055.3,1.428404]
[1764362125433,1.13329574,3055.4,3055.3,1.21195703]
[1764362125640,1.13329574,3055.4,3055.3,1.66455703]
[1764362126156,1.13329574,3055.4,3055.3,1.21195703]
[1764362127359,1.13329574,3055.4,3055.3,4.38495804]
[1764362127533,1.13329574,3055.4,3055.3,4.48495804]
[1764362131166,1.62809574,3055.4,3055.3,4.01565804]
[1764362131336,1.62809574,3055.4,3055.3,3.77950501]
[1764362132067,2.10889574,3055.4,3055.3,3.77950501]
[1764362133362,1.13329574,3055.4,3055.3,4.24880501]
[1764362133860,1.13329574,3055.4,3055.3,3.77950501]
[1764362136067,1.13329574,3055.4,3055.3,4.26730501]
[1764362136242,1.13329574,3055.4,3055.3,3.67950501]
[1764362136442,2.08829574,3055.4,3055.3,3.67950501]
[1764362136654,1.59259574,3055.4,3055.3,3.67950501]
[1764362136847,1.59259574,3055.4,3055.3,3.77950501]
[1764362137170,1.13329574,3055.4,3055.3,3.77950501]
[1764362139074,1.13329574,3055.4,3055.3,4.26730501]
[1764362143745,1.13329574,3055.4,3055.3,3.77950501]
[1764362149092,1.13329574,3055.4,3055.3,6.2972291]
[1764362149580,0.24869574,3055.4,3055.3,11.31451822]
[1764362149756,0.24869574,3055.4,3055.3,12.26499342]
[1764362150144,1e-08,3055.5,3055.4,2.17449811]
[1764362150367,1e-08,3055.5,3055.4,4.69124633]
[1764362150967,1e-08,3055.5,3055.4,4.72397526]
[1764362151171,1e-08,3055.5,3055.4,8.127949]
[1764362151482,1e-08,3055.5,3055.4,8.09522007]
[1764362151684,1e-08,3055.5,3055.4,13.11250919]
[1764362151849,1e-08,3055.5,3055.4,8.09522007]
[1764362154773,1e-08,3055.5,3055.4,12.70700519]
[1764362154973,1e-08,3055.5,3055.4,13.11250919]
[1764362157396,1e-08,3055.5,3055.4,8.09522007]
[1764362157572,1e-08,3055.5,3055.4,13.11250919]
[1764362162180,0.8866,3055.9,3055.8,0.405504]
[1764362162497,0.002,3056.0,3055.8,0.405504]
[1764362162498,0.002,3056.0,3055.9,1.23109811]
[1764362162810,0.002,3056.0,3055.9,2.8720893]
[1764362163892,0.002,3056.0,3055.9,2.90481288]
[1764362165014,0.002,3056.0,3055.9,6.17717126]
[1764362165218,0.002,3056.0,3055.9,6.30824381]
[1764362167093,0.002,3056.0,3055.9,10.86993293]
[1764362167295,0.002,3056.0,3055.9,11.33110935]
[1764362169017,0.002,3056.0,3055.9,10.83720935]
[1764362169321,0.002,3056.0,3055.9,5.81992023]
[1764362169999,0.002,3056.0,3055.9,5.85264381]
[1764362170547,0.002,3056.0,3055.9,5.81992023]
[1764362170990,0.002,3056.0,3055.9,5.33212023]
[1764362171194,0.9665,3056.0,3055.9,3.37235838]
[1764362171688,0.9665,3056.0,3055.9,4.50345649]
[1764362172096,0.9665,3056.0,3055.9,3.37235838]
[1764362174301,1.27215976,3056.0,3055.9,3.37235838]
[1764362178152,2.79215976,3056.0,3055.9,3.37235838]
[1764362182858,2.79215976,3056.0,3055.9,3.27235838]
[1764362183062,2.79215976,3056.0,3055.9,3.37235838]
[1764362184939,2.79215976,3056.0,3055.9,3.37335838]
[1764362185957,2.79215976,3056.0,3055.9,3.27335838]
[1764362187826,2.79215976,3056.0,3055.9,3.37335838]
[1764362189437,2.79215976,3056.0,3055.9,3.27335838]
[1764362189639,2.31755976,3056.0,3055.9,3.27335838]
[1764362189835,2.31755976,3056.0,3055.9,3.37335838]
[1764362190243,1.82765976,3056.0,3055.9,3.98586238]
[1764362190561,2.73895976,3056.0,3055.9,3.98586238]
[1764362194266,2.28205976,3056.0,3055.9,3.48035838]
[1764362194473,2.73895976,3056.0,3055.9,3.48035838]
[1764362194764,2.73895976,3056.0,3055.9,3.58035838]
[1764362195429,1.82765976,3056.0,3055.9,4.47046238]
[1764362195634,1.82765976,3056.0,3055.9,6.00307224]
[1764362197034,1.82765976,3056.0,3055.9,5.97034866]
[1764362197235,2.29045976,3056.0,3055.9,4.71145649]
[1764362199168,1.82765976,3056.0,3055.9,5.22878007]
[1764362199368,1.82765976,3056.0,3055.9,5.69228007]
[1764362199543,1.82765976,3056.0,3055.9,5.22878007]
[1764362200833,1.82765976,3056.0,3055.9,5.69228007]
[1764362201166,1.82765976,3056.0,3055.9,6.58875401]
[1764362201371,1.82765976,3056.0,3055.9,6.09253043]
[1764362201540,1.82765976,3056.0,3055.9,5.60793043]
[1764362202166,1.82765976,3056.0,3055.9,6.09253043]
[1764362203352,1.82765976,3056.0,3055.9,6.12525401]
[1764362203558,1.82765976,3056.0,3055.9,6.09253043]
[1764362205449,1.82765976,3056.0,3055.9,5.60793043]
[1764362205682,2.29045976,3056.0,3055.9,5.60793043]
[1764362211362,2.29045976,3056.0,3055.9,4.71145649]
[1764362214974,2.74505976,3056.0,3055.9,4.71145649]
[1764362216563,1.82765976,3056.0,3055.9,5.22878007]
[1764362217263,1.82765976,3056.0,3055.9,5.69228007]
[1764362217702,1.82765976,3056.0,3055.9,5.59228007]
[1764362217880,1.82765976,3056.0,3055.9,6.67706905]
[1764362218066,1.82765976,3056.0,3055.9,6.64434547]
[1764362218608,1.82765976,3056.0,3055.9,6.18084547]
[1764362218807,1.82765976,3056.0,3055.9,6.21356905]
[1764362218971,1.82765976,3056.0,3055.9,6.18084547]
[1764362219395,1.82765976,3056.0,3055.9,6.21356905]
[1764362219984,2.74505976,3056.0,3055.9,5.59624547]
[1764362220189,2.74505976,3056.0,3055.9,4.71145649]
[1764362220501,2.29045976,3056.0,3055.9,4.71145649]
[1764362222306,1.82765976,3056.0,3055.9,4.71145649]
[1764362226305,1.82765976,3056.0,3055.9,5.17665649]
[1764362228604,1.82765976,3056.0,3055.9,5.20938007]
[1764362228812,1.82765976,3056.0,3055.9,6.69564905]
[1764362229107,1.82765976,3056.0,3055.9,6.66292547]
[1764362229307,1.82765976,3056.0,3055.9,4.71145649]
[1764362231217,1.82765976,3056.0,3055.9,5.17665649]
[1764362231812,1.82765976,3056.0,3055.9,4.71145649]
[1764362232016,2.31815976,3056.0,3055.9,4.71145649]
[1764362234297,2.76875976,3056.0,3055.9,4.71145649]
[1764362236395,1.82765976,3056.0,3055.9,4.74418007]
[1764362236598,1.82765976,3056.0,3055.9,4.71145649]
[1764362236903,2.29555976,3056.0,3055.9,4.71145649]
[1764362237403,2.29555976,3056.0,3055.9,4.61145649]
[1764362237603,2.29555976,3056.0,3055.9,4.71145649]
[1764362240316,2.29555976,3056.0,3055.9,4.74418007]
[1764362240712,2.78445976,3056.0,3055.9,4.71145649]
[1764362241531,2.29555976,3056.0,3055.9,4.71145649]
[1764362241702,2.29555976,3056.0,3055.9,4.74418007]
[1764362247027,1.82765976,3056.0,3055.9,5.22358007]
[1764362247201,1.82765976,3056.0,3055.9,11.52547318]
[1764362247397,1.82765976,3056.0,3055.9,5.99252043]
[1764362247602,2.29555976,3056.0,3055.9,4.71145649]
[1764362252038,2.78445976,3056.0,3055.9,4.61145649]
[1764362252242,2.78445976,3056.0,3055.9,4.71145649]
[1764362253745,1.82765976,3056.0,3055.9,5.19085649]
[1764362254738,1.82765976,3056.0,3055.9,5.70888007]
[1764362254950,1.82765976,3056.0,3055.9,5.19085649]
[1764362255223,1.82765976,3056.0,3055.9,4.71145649]
[1764362255416,2.31075976,3056.0,3055.9,4.71145649]
[1764362255621,2.31075976,3056.0,3055.9,5.69464559]
[1764362256046,1.82765976,3056.0,3055.9,5.72736917]
[1764362256209,1.82765976,3056.0,3055.9,6.17776917]
[1764362261757,1.82765976,3056.0,3055.9,5.69464559]
[1764362261929,1.82765976,3056.0,3055.9,5.72736917]
[1764362262129,2.31075976,3056.0,3055.9,5.72736917]
[1764362262329,2.31075976,3056.0,3055.9,5.69464559]
[1764362263454,2.31075976,3056.0,3055.9,5.59464559]
[1764362263619,1.82765976,3056.0,3055.9,5.69464559]
[1764362264244,2.31075976,3056.0,3055.9,5.69464559]
[1764362264417,1.82765976,3056.0,3055.9,5.69464559]
[1764362265256,1.82765976,3056.0,3055.9,5.72736917]
[1764362266741,1.82765976,3056.0,3055.9,6.17776917]
[1764362266934,1.82765976,3056.0,3055.9,7.58889202]
[1764362267134,1.82765976,3056.0,3055.9,7.55616844]
[1764362267346,1.82765976,3056.0,3055.9,12.10499761]
[1764362270057,1.82765976,3056.0,3055.9,7.09006844]
[1764362270584,1.82765976,3056.0,3055.9,6.63966844]
[1764362272347,2.31075976,3056.0,3055.9,5.69464559]
[1764362272548,2.76305976,3056.0,3055.9,3.27335838]
[1764362272762,2.76305976,3056.0,3055.9,0.001]
[1764362279253,1.519,3055.9,3055.5,0.001]
[1764362279427,0.4831,3055.6,3055.5,0.001]
[1764362279766,0.78875976,3055.6,3055.5,0.001]
[1764362279930,1.24105976,3055.6,3055.5,0.001]
[1764362281062,0.30565976,3055.6,3055.5,0.4514]
[1764362281271,0.30565976,3055.6,3055.5,4.26241863]
[1764362281573,0.30565976,3055.6,3055.5,4.98801274]
[1764362281778,0.30565976,3055.6,3055.5,4.95528488]
[1764362283357,0.30565976,3055.6,3055.5,4.98801274]
[1764362285039,1.82465976,3055.6,3055.5,4.98801274]
[1764362288248,1.82465976,3055.6,3055.5,5.97136298]
[1764362290347,1.82465976,3055.6,3055.5,13.25961603]
[1764362290547,1.82465976,3055.6,3055.5,13.22688817]
[1764362297089,1.82465976,3055.6,3055.5,5.93863512]
[1764362299090,1.82465976,3055.6,3055.5,5.97136298]
[1764362299281,1.82465976,3055.6,3055.5,5.93863512]
[1764362300159,1.82465976,3055.6,3055.5,5.97136298]
[1764362300359,1.82465976,3055.6,3055.5,5.93863512]
[1764362301368,1.82465976,3055.6,3055.5,5.97136298]
[1764362302986,1.82465976,3055.6,3055.5,6.47116298]
[1764362303205,1.82465976,3055.6,3055.5,8.29515686]
[1764362303389,1.82465976,3055.6,3055.5,8.262429]
[1764362307064,1.82465976,3055.6,3055.5,13.27735817]
[1764362307266,1.82465976,3055.6,3055.5,8.262429]
[1764362308695,1.82465976,3055.6,3055.5,13.27718023]
[1764362311692,0.002,3055.9,3055.8,0.1]
[1764362311864,0.002,3055.9,3055.8,1.179804]
[1764362312069,0.002,3055.9,3055.8,1.42359638]
[1764362312298,0.002,3055.9,3055.8,1.55468869]
[1764362315796,0.002,3055.9,3055.8,5.55274827]
[1764362315978,1e-08,3056.0,3055.9,1.62329811]
[1764362316303,1e-08,3056.0,3055.9,2.24452169]
[1764362316512,0.002,3056.3,3056.2,0.405504]
[1764362316814,0.002,3056.3,3056.2,7.43254934]
[1764362317296,0.002,3056.7,3056.6,0.505504]
[1764362317476,0.002,3056.7,3056.6,0.711504]
[1764362317680,0.4585,3056.7,3056.6,4.70870708]
[1764362318379,0.4585,3056.7,3056.6,5.17340708]
[1764362318981,0.002,3056.7,3056.6,6.51011888]
[1764362319308,0.002,3056.7,3056.6,6.99861888]
[1764362320172,0.002,3056.7,3056.6,6.59311488]
[1764362320576,0.002,3056.7,3056.6,6.99861888]
[1764362321972,0.002,3056.7,3056.6,6.51011888]
[1764362323791,0.30750785,3056.7,3056.6,6.51011888]
[1764362324915,0.76400785,3056.7,3056.6,3.73630897]
[1764362325102,1.22870785,3056.7,3056.6,3.37160897]
[1764362325304,1.22870785,3056.7,3056.6,3.77711297]
[1764362325615,1.22870785,3056.7,3056.6,4.50270708]
[1764362332821,1.22870785,3056.7,3056.6,4.09720308]
[1764362333130,1.22870785,3056.7,3056.3,0.1]
[1764362333428,0.77020785,3056.6,3056.3,0.1]
[1764362333622,0.4565,3056.4,3056.3,0.1]
[1764362333814,0.4565,3056.4,3056.3,3.37193011]
[1764362333815,0.76200785,3056.4,3056.3,3.37193011]
[1764362334125,1.22670785,3056.4,3056.3,3.37193011]
[1764362334499,1.22670785,3056.4,3056.3,3.77743411]
[1764362336617,1.22670785,3056.4,3056.3,3.77843411]
[1764362336936,0.30550785,3056.4,3056.3,3.77843411]
[1764362337133,0.76200785,3056.4,3056.3,3.77843411]
[1764362337339,1.22670785,3056.4,3056.3,3.77843411]
[1764362340840,0.76200785,3056.4,3056.3,4.01715341]
[1764362341242,0.76200785,3056.4,3056.3,3.98443411]
[1764362341948,0.76200785,3056.4,3056.3,4.71002822]
[1764362342327,0.30550785,3056.4,3056.3,5.23494752]
[1764362342529,0.30550785,3056.4,3056.3,6.59785418]
[1764362342855,0.30550785,3056.4,3056.3,6.90336203]
[1764362343165,0.30550785,3056.4,3056.3,6.87064273]
[1764362346658,0.30550785,3056.4,3056.3,6.38214273]
[1764362355764,0.30550785,3056.4,3056.3,6.41486203]
[1764362356342,0.30550785,3056.4,3056.3,6.38214273]
[1764362356666,0.30550785,3056.4,3056.3,6.41486203]
[1764362357733,0.30550785,3056.4,3056.3,6.88436203]
[1764362357938,0.30550785,3056.4,3056.3,6.85164273]
[1764362360045,0.30550785,3056.4,3056.3,6.38214273]
[1764362360245,0.002,3056.6,3056.5,6.24584934]
[1764362360446,0.002,3056.9,3056.6,1.58789811]
[1764362360649,0.4965,3057.6,3057.0,0.405504]
[1764362360974,0.4965,3057.6,3057.0,0.962304]
[1764362361151,0.4965,3057.6,3057.0,1.431804]
[1764362361353,0.002,3058.2,3057.0,4.36452008]
[1764362361354,0.4985,3057.5,3057.0,4.36452008]
[1764362362342,0.4985,3057.5,3057.0,5.74908474]
[1764362364862,0.002,3057.5,3057.0,6.37467885]
[1764362365051,1e-08,3057.3,3057.2,1.144904]
[1764362365253,1e-08,3057.3,3057.2,7.56074934]
[1764362365457,1e-08,3057.3,3057.2,9.09812587]
[1764362366177,1e-08,3057.3,3057.2,9.22914475]
[1764362366773,1e-08,3057.3,3057.2,12.50011164]
[1764362367278,1e-08,3057.5,3057.4,0.962304]
[1764362367778,1e-08,3057.5,3057.4,1.431804]
[1764362367972,1e-08,3057.5,3057.4,3.52830477]
[1764362369078,1e-08,3057.5,3057.4,11.80800984]
[1764362371486,0.002,3057.9,3057.4,18.24951568]
[1764362371667,0.002,3057.9,3057.8,5.97125615]
[1764362371875,0.002,3057.9,3057.8,6.90285026]
[1764362372059,0.002,3057.9,3057.8,8.06263529]
[1764362372762,0.002,3057.9,3057.8,8.55913529]
[1764362374888,0.002,3057.9,3057.8,11.82946036]
[1764362378954,0.002,3057.9,3057.8,11.35996036]
[1764362379282,0.002,3057.9,3057.8,10.90316036]
[1764362379515,1.1549,3057.9,3057.8,3.57632507]
[1764362379794,1.1549,3057.9,3057.8,4.30191918]
[1764362380091,1.1549,3057.9,3057.8,4.70742318]
[1764362384887,1.45967106,3057.9,3057.8,4.70742318]
[1764362385078,1.1549,3057.9,3057.8,4.70742318]
[1764362385282,1.45969556,3057.9,3057.8,4.70742318]
[1764362393212,0.30679556,3057.9,3057.8,9.74907858]
[1764362393375,0.30679556,3057.9,3057.8,9.71637533]
[1764362395090,0.77639556,3057.9,3057.8,9.71637533]
[1764362396680,0.77772526,3057.9,3057.8,9.71637533]
[1764362398515,1.45772526,3057.9,3057.8,4.70742318]
[1764362400922,1.45784024,3057.9,3057.8,4.70742318]
[1764362402620,1.45784024,3057.9,3057.8,3.27032507]
[1764362403126,1.45784024,3057.9,3057.7,3.27038985]
[1764362403331,0.80074024,3057.8,3057.7,3.27038985]
[1764362403530,1.27034024,3057.8,3057.7,3.27038985]
[1764362405640,1.27034024,3057.8,3057.5,0.72659411]
[1764362405811,0.4629,3057.6,3057.5,0.001]
[1764362406115,0.76914024,3057.6,3057.5,0.001]
[1764362406298,1.23974024,3057.6,3057.5,0.001]
[1764362410625,1.23974024,3057.6,3057.5,0.101]
[1764362413269,1.23974024,3057.6,3057.5,3.37164595]
[1764362414528,0.76914024,3057.6,3057.5,3.67714995]
[1764362414732,0.30624024,3057.6,3057.5,11.63238126]
[1764362416432,0.30624024,3057.6,3057.5,6.15412911]
[1764362416919,0.30624024,3057.6,3057.5,4.95844406]
[1764362418368,0.002,3057.9,3057.8,0.505504]
[1764362418639,0.002,3057.9,3057.8,0.711504]
[1764362419144,0.002,3057.9,3057.8,6.17615615]
[1764362420777,0.002,3057.9,3057.8,9.44648122]
[1764362420950,0.002,3057.9,3057.8,10.83766125]
[1764362422136,0.486,3057.9,3057.8,10.38196125]
[1764362422455,0.9844,3057.9,3057.8,5.3730091]
[1764362423030,0.486,3057.9,3057.8,5.3730091]
[1764362424850,0.002,3057.9,3057.8,10.85056125]
[1764362425163,0.002,3057.9,3057.8,11.32806125]
[1764362425922,0.002,3057.9,3057.8,10.85056125]
[1764362429452,0.002,3057.9,3057.8,11.32806125]
[1764362430263,0.3077397,3057.9,3057.8,10.85056125]
[1764362430559,0.3077397,3057.9,3057.8,5.8416091]
[1764362430729,0.3077397,3057.9,3057.8,5.87431235]
[1764362430927,0.3077397,3057.9,3057.8,5.8416091]
[1764362431735,0.3077397,3057.9,3057.8,5.87431235]
[1764362433154,0.3077397,3057.9,3057.8,3.88182907]
[1764362433155,1.4616397,3057.9,3057.8,3.88182907]
[1764362434049,1.4616397,3057.9,3057.8,4.60742318]
[1764362436273,1.4616397,3057.9,3057.8,3.47632507]
[1764362436558,1.4616397,3057.9,3057.8,3.27032507]
[1764362437834,1.4616397,3057.9,3057.5,6.9477959]
[1764362438033,0.4574,3057.6,3057.5,4.40274406]
[1764362438234,0.7631397,3057.6,3057.5,4.40274406]
[1764362438464,1.2165397,3057.6,3057.5,4.40274406]
[1764362441059,1.20840063,3057.6,3057.5,4.40274406]
[1764362441273,1.20840063,3057.6,3057.5,0.001]
[1764362449875,1.20840063,3057.6,3057.5,3.27164595]
[1764362457382,1.21040063,3057.6,3057.5,3.27164595]
[1764362461965,0.75700063,3057.6,3057.5,3.27164595]
[1764362462157,1.21040063,3057.6,3057.5,3.27164595]
[1764362465599,0.3077397,3057.6,3057.5,3.76744595]
[1764362465806,0.3077397,3057.6,3057.5,5.63816921]
[1764362465964,0.3077397,3057.6,3057.5,4.47894995]
[1764362467795,0.7938397,3057.6,3057.5,3.88314995]
[1764362468093,1.2837397,3057.6,3057.5,3.67714995]
[1764362468499,1.2837397,3057.6,3057.5,3.77714995]
[1764362469313,1.2837397,3057.6,3057.5,0.001]
[1764362469670,1.9129615,3057.6,3057.5,0.001]
[1764362470385,2.1189615,3057.6,3057.5,0.001]
[1764362473398,22.6186385,3057.6,3057.5,0.001]
[1764362473777,12.5231005,3057.6,3057.5,0.001]
[1764362474767,12.4731005,3057.6,3057.5,0.001]
[1764362482108,39.30574321,3057.6,3057.2,0.001]
[1764362482412,27.37019602,3057.3,3057.2,0.001]
[1764362482612,32.00478502,3057.3,3057.2,0.001]
[1764362482776,32.46328502,3057.3,3057.2,0.001]
[1764362482976,28.11623902,3057.3,3057.2,0.001]
[1764362483176,21.94331943,3057.3,3057.2,0.001]
[1764362483515,22.17442377,3057.3,3057.2,0.001]
[1764362484205,35.37623867,3057.3,3057.2,0.001]
[1764362484379,38.82423867,3057.3,3057.2,0.001]
[1764362485213,37.20525067,3057.3,3057.2,0.001]
[1764362486509,36.45155967,3057.3,3057.2,0.001]
[1764362486914,36.75714043,3057.3,3057.2,0.001]
[1764362487312,23.31685743,3057.3,3057.2,0.001]
[1764362487513,36.69131643,3057.3,3057.2,0.001]
[1764362488338,23.31685743,3057.3,3057.2,0.001]
[1764362488508,36.66809443,3057.3,3057.2,0.001]
[1764362489315,27.95652581,3057.3,3057.2,0.001]
[1764362489482,22.94804752,3057.3,3057.2,0.001]
[1764362489810,16.50852117,3057.3,3057.2,0.001]
[1764362489983,11.61461576,3057.3,3057.2,0.001]
[1764362490180,11.82061576,3057.3,3057.2,0.001]
[1764362490502,11.61461576,3057.3,3057.2,0.001]
[1764362490811,6.85158076,3057.3,3057.2,0.478]
[1764362492136,0.30558076,3057.3,3057.2,0.9374]
[1764362492491,0.30558076,3057.3,3057.2,4.30836689]
[1764362492691,0.30558076,3057.3,3057.2,5.58648739]
[1764362493829,0.30558076,3057.3,3057.2,6.7175855]
[1764362494195,0.30558076,3057.3,3057.2,6.6175855]
[1764362494398,0.30558076,3057.3,3057.2,6.7175855]
[1764362494797,0.002,3057.6,3057.4,0.1]
[1764362495010,0.002,3057.6,3057.5,0.477]
[1764362495331,0.3073976,3057.6,3057.5,0.9679]
[1764362496727,0.3073976,3057.6,3057.5,4.23854595]
[1764362499937,1.2666976,3057.6,3057.4,3.27070993]
[1764362500157,0.4914976,3057.5,3057.4,3.27070993]
[1764362500448,0.3053976,3057.5,3057.4,3.27070993]
[1764362500613,0.3053976,3057.5,3057.4,4.22340993]
[1764362500816,0.3053976,3057.5,3057.4,3.73250993]
[1764362501119,0.002,3057.6,3057.4,7.00326285]
[1764362501312,0.30542915,3057.5,3057.4,3.73250993]
[1764362502142,0.30542915,3057.5,3057.4,4.32340993]
[1764362503417,0.30542915,3057.5,3057.4,5.58401318]
[1764362506235,0.30542915,3057.5,3057.4,11.32037531]
[1764362508244,0.30542915,3057.5,3057.4,6.31060729]
[1764362511747,0.30542915,3057.5,3057.4,6.71611129]
[1764362520031,0.30542915,3057.5,3057.4,11.72687931]
[1764362523859,0.3065556,3057.5,3057.4,11.72687931]
[1764362526670,0.3085556,3057.5,3057.4,11.72687931]
[1764362528073,0.3085556,3057.5,3057.4,6.71611129]
[1764362531445,0.30846454,3057.5,3057.4,6.71611129]
[1764362533575,0.002,3057.6,3057.5,6.24186613]
[1764362533782,0.002,3057.6,3057.5,9.76129806]
[1764362533981,0.002,3057.6,3057.5,9.72859161]
[1764362536051,0.002,3057.6,3057.5,12.99923756]
[1764362539986,0.002,3057.6,3057.5,7.56546554]
[1764362540184,0.002,3057.6,3057.5,7.97096954]
[1764362541954,0.002,3057.6,3057.5,7.49276954]
[1764362542269,0.4539,3057.6,3057.5,7.03566954]
[1764362542471,0.9075,3057.6,3057.4,0.001]
[1764362542648,0.2409,3057.5,3057.4,0.001]
[1764362542853,0.6945,3057.5,3057.4,0.001]
[1764362545085,3.561301,3057.5,3057.4,0.001]
[1764362545282,4.24469222,3057.5,3057.4,0.001]
[1764362545587,4.55035503,3057.5,3057.4,0.001]
[1764362547796,1.68355403,3057.5,3057.4,0.001]
[1764362550781,1.68308511,3057.5,3057.4,0.001]
[1764362551992,4.95373106,3057.5,3057.4,0.001]
[1764362552792,4.953596,3057.5,3057.4,0.001]
[1764362553361,1.68295005,3057.5,3057.4,0.001]
[1764362554891,4.953596,3057.5,3057.4,0.001]
[1764362555965,24.421911,3057.5,3057.4,0.001]
[1764362557396,26.629343,3057.5,3057.4,0.001]
[1764362557571,22.891964,3057.5,3057.4,0.001]
[1764362558496,23.459314,3057.5,3057.4,0.001]
[1764362559568,23.306455,3057.5,3057.4,0.001]
[1764362559898,22.422805,3057.5,3057.4,0.001]
[1764362560566,22.514455,3057.5,3057.4,0.001]
[1764362561270,21.922805,3057.5,3057.4,0.001]
[1764362561672,22.093827,3057.5,3057.4,0.001]
[1764362562801,22.817515,3057.5,3057.4,0.001]
[1764362563692,20.76410617,3057.5,3057.4,0.001]
[1764362563992,21.06889257,3057.5,3057.4,0.001]
[1764362564492,20.72714227,3057.5,3057.4,0.001]
[1764362564895,4.03308062,3057.5,3057.4,0.001]
[1764362565202,7.30372657,3057.5,3057.4,0.001]
[1764362565871,7.37741357,3057.5,3057.4,0.001]
[1764362566920,7.26444457,3057.5,3057.4,0.001]
[1764362568016,11.73899057,3057.5,3057.4,0.001]
[1764362568715,5.16132357,3057.5,3057.4,0.001]
[1764362568911,11.73899057,3057.5,3057.4,0.001]
[1764362569915,5.16132357,3057.5,3057.4,0.001]
[1764362570218,11.68367357,3057.5,3057.4,0.001]
[1764362570413,11.18367357,3057.5,3057.4,0.001]
[1764362570934,5.16132357,3057.5,3057.4,0.001]
[1764362572316,7.61136157,3057.5,3057.4,0.001]
[1764362572515,7.57281257,3057.5,3057.4,0.001]
[1764362572887,5.16132357,3057.5,3057.4,0.001]
[1764362574800,1.89067762,3057.5,3057.4,0.001]
[1764362575789,7.82684957,3057.5,3057.4,0.001]
[1764362576918,12.34846057,3057.5,3057.4,0.001]
[1764362577424,11.82946057,3057.5,3057.4,0.001]
[1764362578119,10.99846057,3057.5,3057.4,0.001]
[1764362579317,10.36902557,3057.5,3057.4,0.001]
[1764362580317,14.67556457,3057.5,3057.4,0.001]
[1764362580500,6.65981162,3057.5,3057.4,0.001]
[1764362580701,9.93045757,3057.5,3057.4,0.001]
[1764362581217,13.69203657,3057.5,3057.4,0.001]
[1764362581741,13.49063657,3057.5,3057.4,0.001]
[1764362582124,13.91798657,3057.5,3057.4,0.001]
[1764362582334,13.50963657,3057.5,3057.4,0.001]
[1764362582509,12.89898657,3057.5,3057.4,0.001]
[1764362583119,8.74763862,3057.5,3057.4,0.001]
[1764362583349,6.92058362,3057.5,3057.4,0.001]
[1764362583637,1.66257762,3057.5,3057.4,0.001]
[1764362583838,10.94820357,3057.5,3057.4,0.001]
[1764362584292,25.87453557,3057.5,3057.4,0.001]
[1764362585397,5.39412357,3057.5,3057.4,0.001]
[1764362585597,25.70873757,3057.5,3057.4,0.001]
[1764362586546,2.12347762,3057.5,3057.4,0.001]
[1764362592334,1.91747762,3057.5,3057.4,0.001]
[1764362592498,1.19617762,3057.5,3057.4,0.4652]
[1764362592928,1.19617762,3057.5,3057.4,0.001]
[1764362593114,1.19617762,3057.5,3057.4,0.4652]
[1764362594229,0.89139122,3057.5,3057.4,0.4652]
[1764362594436,1.19820559,3057.5,3057.4,0.4652]
[1764362595902,1.69760559,3057.5,3057.4,0.001]
[1764362597337,1.69758693,3057.5,3057.4,0.001]
[1764362602215,1.49158693,3057.5,3057.4,0.001]
[1764362602414,1.69758693,3057.5,3057.4,0.001]
[1764362603525,2.17558693,3057.5,3057.4,0.001]
[1764362608066,1.69758693,3057.5,3057.4,0.001]
[1764362610445,1.94518693,3057.5,3057.4,0.001]
[1764362610630,2.15118693,3057.5,3057.4,0.001]
[1764362612349,1.69758693,3057.5,3057.4,0.001]
[1764362615155,2.15298693,3057.5,3057.4,0.001]
[1764362617477,1.69758693,3057.5,3057.4,0.001]
[1764362617647,1.62266506,3057.5,3057.4,0.001]
[1764362617852,1.32926506,3057.5,3057.4,0.4714]
[1764362624894,1.12326506,3057.5,3057.4,0.4714]
[1764362625104,0.64587384,3057.5,3057.4,0.4714]
[1764362625310,0.64587384,3057.5,3057.4,0.9657]
[1764362626522,0.43987384,3057.5,3057.4,0.9657]
[1764362626730,0.64587384,3057.5,3057.4,0.9657]
[1764362627226,0.43987384,3057.5,3057.4,0.4714]
[1764362627431,0.30879571,3057.5,3057.4,4.33645292]
[1764362634245,0.30879571,3057.5,3057.4,5.1955731]
[1764362634620,0.30879571,3057.5,3057.4,6.17840467]
[1764362640050,0.30824616,3057.5,3057.4,6.17840467]
[1764362641355,1.23424616,3057.5,3057.4,0.98383157]
[1764362641659,1.29309232,3057.5,3057.4,0.98383157]
[1764362641829,1.74849232,3057.5,3057.4,0.001]
[1764362646777,0.61649232,3057.5,3057.4,0.4665]
[1764362646952,0.30824616,3057.5,3057.4,0.9363]
[1764362648088,0.30824616,3057.5,3057.4,4.20705292]
[1764362648255,0.30824616,3057.5,3057.4,4.97804895]
[1764362648753,0.30824616,3057.5,3057.4,4.50824895]
[1764362649668,0.79364616,3057.5,3057.4,3.27175292]